[Event "Live Chess"]
[Site "Chess.com"]
[Date "2024.06.02"]
[Round "-"]
[White "vincents82"]
[Black "KyryloPoluliakh"]
[Result "1-0"]
[WhiteElo "2011"]
[BlackElo "1535"]
[TimeControl "300"]
[EndTime "23:32:25 PDT"]
[Termination "vincents82 won on time"]

1. e4 {[%clk 0:04:53.9]} 1... c5 {[%clk 0:04:59.1]} 2. Nf3 {[%clk 0:04:51.2]}
2... Nc6 {[%clk 0:04:56.9]} 3. d4 {[%clk 0:04:50]} 3... cxd4 {[%clk 0:04:54.4]}
4. Nxd4 {[%clk 0:04:49.2]} 4... g6 {[%clk 0:04:53.5]} 5. c4 {[%clk 0:04:47.8]}
5... Bg7 {[%clk 0:04:51.2]} 6. Be3 {[%clk 0:04:39.8]} 6... Nf6 {[%clk
0:04:44.6]} 7. Nc3 {[%clk 0:04:37.1]} 7... O-O {[%clk 0:04:41.6]} 8. f3 {[%clk
0:04:34.4]} 8... d6 {[%clk 0:04:38]} 9. Qd2 {[%clk 0:04:30.2]} 9... Re8 {[%clk
0:04:34.8]} 10. Be2 {[%clk 0:04:29]} 10... Ne5 {[%clk 0:04:30.4]} 11. O-O {[%clk
0:04:27.2]} 11... a6 {[%clk 0:04:24.3]} 12. Rfd1 {[%clk 0:04:22.5]} 12... Qc7
{[%clk 0:04:17.4]} 13. b3 {[%clk 0:04:19.7]} 13... Nc6 {[%clk 0:04:10.2]} 14.
Rac1 {[%clk 0:04:12.1]} 14... Nd7 {[%clk 0:04:02.7]} 15. Nd5 {[%clk 0:04:09.7]}
15... Qb8 {[%clk 0:03:54.6]} 16. Nc2 {[%clk 0:03:52.2]} 16... e6 {[%clk
0:03:37.9]} 17. Nc3 {[%clk 0:03:48.9]} 17... Nce5 {[%clk 0:03:09.4]} 18. f4
{[%clk 0:03:24.9]} 18... Nc6 {[%clk 0:03:02.1]} 19. Bf3 {[%clk 0:03:19]} 19...
Nc5 {[%clk 0:02:45.8]} 20. Ne2 {[%clk 0:03:01.3]} 20... b6 {[%clk 0:02:12.7]}
21. Qxd6 {[%clk 0:02:54.3]} 21... Qxd6 {[%clk 0:02:09.6]} 22. Rxd6 {[%clk
0:02:52.7]} 22... Bb7 {[%clk 0:02:07.2]} 23. e5 {[%clk 0:02:46.7]} 23... Nd8
{[%clk 0:01:57.3]} 24. Bxb7 {[%clk 0:02:25.6]} 24... Ndxb7 {[%clk 0:01:54.5]}
25. Rxb6 {[%clk 0:02:24.4]} 25... f6 {[%clk 0:01:46.6]} 26. b4 {[%clk
0:02:19.6]} 26... Nd3 {[%clk 0:01:34.3]} 27. Rd1 {[%clk 0:01:58.2]} 27... Nb2
{[%clk 0:01:31.5]} 28. Rb1 {[%clk 0:01:57.1]} 28... Nxc4 {[%clk 0:01:29.6]} 29.
Rxb7 {[%clk 0:01:56.2]} 29... Nxe3 {[%clk 0:01:26.2]} 30. Nxe3 {[%clk
0:01:55.1]} 30... fxe5 {[%clk 0:01:23.8]} 31. Rc1 {[%clk 0:01:39.8]} 31... exf4
{[%clk 0:01:20.5]} 32. Nxf4 {[%clk 0:01:37.9]} 32... Bd4 {[%clk 0:01:17.3]} 33.
Re1 {[%clk 0:01:24.7]} 33... Rf8 {[%clk 0:01:01.3]} 34. Nxe6 {[%clk 0:01:20.8]}
34... Bxe3+ {[%clk 0:00:57.8]} 35. Rxe3 {[%clk 0:01:17]} 35... Rfe8 {[%clk
0:00:54.5]} 36. h3 {[%clk 0:01:09.9]} 36... Rac8 {[%clk 0:00:50.2]} 37. Rb6
{[%clk 0:00:53]} 37... Rc1+ {[%clk 0:00:45]} 38. Kh2 {[%clk 0:00:51.7]} 38...
Rc2 {[%clk 0:00:43.7]} 39. Rxa6 {[%clk 0:00:49.8]} 39... Rc4 {[%clk 0:00:39.1]}
40. b5 {[%clk 0:00:48.2]} 40... Rb4 {[%clk 0:00:36.9]} 41. a4 {[%clk 0:00:46.9]}
41... h6 {[%clk 0:00:17.7]} 42. Rg3 {[%clk 0:00:43.6]} 42... g5 {[%clk
0:00:16.1]} 43. Nxg5 {[%clk 0:00:40.5]} 43... hxg5 {[%clk 0:00:14.9]} 44. Rxg5+
{[%clk 0:00:39.3]} 44... Kf7 {[%clk 0:00:14.3]} 45. Rh5 {[%clk 0:00:35.3]} 45...
Kg7 {[%clk 0:00:11.9]} 46. Rg5+ {[%clk 0:00:31.9]} 46... Kf7 {[%clk 0:00:10]}
47. Rg4 {[%clk 0:00:31.4]} 47... Rb3 {[%clk 0:00:08]} 48. Rg3 {[%clk 0:00:29.8]}
48... Rxg3 {[%clk 0:00:07.3]} 49. Kxg3 {[%clk 0:00:28.7]} 49... Re3+ {[%clk
0:00:06.6]} 50. Kh2 {[%clk 0:00:28]} 50... Rb3 {[%clk 0:00:06.1]} 51. h4 {[%clk
0:00:26.1]} 51... Rb4 {[%clk 0:00:05.7]} 52. h5 {[%clk 0:00:24.1]} 52... Rh4+
{[%clk 0:00:05.3]} 53. Kg3 {[%clk 0:00:22.9]} 53... Rxh5 {[%clk 0:00:04.7]} 54.
b6 {[%clk 0:00:21.8]} 54... Rc5 {[%clk 0:00:04.3]} 55. a5 {[%clk 0:00:19.9]}
55... Rc3+ {[%clk 0:00:03]} 56. Kh2 {[%clk 0:00:18.8]} 56... Rb3 {[%clk
0:00:02.8]} 57. Ra7+ {[%clk 0:00:18.4]} 57... Ke6 {[%clk 0:00:01.4]} 58. b7
{[%clk 0:00:18]} 58... Kd6 {[%clk 0:00:01.2]} 59. a6 {[%clk 0:00:17.5]} 59...
Kc7 {[%clk 0:00:00.7]} 60. Ra8 {[%clk 0:00:17.2]} 1-0

[Event "Live Chess"]
[Site "Chess.com"]
[Date "2024.06.02"]
[Round "-"]
[White "Crowded_House"]
[Black "WilliamofOrange16th"]
[Result "1/2-1/2"]
[WhiteElo "1694"]
[BlackElo "1977"]
[TimeControl "300"]
[EndTime "23:32:39 PDT"]
[Termination "Game drawn by repetition"]

1. d4 {[%clk 0:04:56.8]} 1... Nf6 {[%clk 0:04:57.6]} 2. Bg5 {[%clk 0:04:56.2]}
2... Ne4 {[%clk 0:04:55.8]} 3. Bh4 {[%clk 0:04:54.5]} 3... d5 {[%clk 0:04:55]}
4. Nd2 {[%clk 0:04:53.8]} 4... Nxd2 {[%clk 0:04:53.2]} 5. Qxd2 {[%clk
0:04:53.1]} 5... Nc6 {[%clk 0:04:46.1]} 6. c3 {[%clk 0:04:49.8]} 6... g6 {[%clk
0:04:44.9]} 7. Nf3 {[%clk 0:04:47.1]} 7... Bg7 {[%clk 0:04:44.2]} 8. e3 {[%clk
0:04:45.6]} 8... O-O {[%clk 0:04:43.4]} 9. Bd3 {[%clk 0:04:44.2]} 9... Bg4
{[%clk 0:04:41.6]} 10. Be2 {[%clk 0:04:40.5]} 10... Qd7 {[%clk 0:04:37.1]} 11.
h3 {[%clk 0:04:39.1]} 11... Bf5 {[%clk 0:04:34.1]} 12. Bd3 {[%clk 0:04:35.3]}
12... Bxd3 {[%clk 0:04:32.6]} 13. Qxd3 {[%clk 0:04:34.2]} 13... e5 {[%clk
0:04:32.1]} 14. dxe5 {[%clk 0:04:31.3]} 14... Nxe5 {[%clk 0:04:32]} 15. Nxe5
{[%clk 0:04:30.3]} 15... Bxe5 {[%clk 0:04:31.9]} 16. O-O {[%clk 0:04:23.8]}
16... h6 {[%clk 0:04:27]} 17. Rad1 {[%clk 0:04:13.5]} 17... c6 {[%clk 0:04:25]}
18. f4 {[%clk 0:04:02.9]} 18... Bg7 {[%clk 0:04:22.3]} 19. b3 {[%clk 0:03:53.8]}
19... Rfe8 {[%clk 0:04:20.3]} 20. Bf2 {[%clk 0:03:50.1]} 20... Rad8 {[%clk
0:04:15.3]} 21. Qc2 {[%clk 0:03:42.4]} 21... f5 {[%clk 0:04:10.4]} 22. c4 {[%clk
0:03:31]} 22... Qe6 {[%clk 0:04:07.4]} 23. cxd5 {[%clk 0:03:27.8]} 23... Rxd5
{[%clk 0:04:07.3]} 24. Rxd5 {[%clk 0:03:25.7]} 24... Qxd5 {[%clk 0:04:07]} 25.
Rd1 {[%clk 0:03:19.3]} 25... Qe6 {[%clk 0:03:57.3]} 26. Qd3 {[%clk 0:03:10.1]}
26... a6 {[%clk 0:03:46.7]} 27. Qd7 {[%clk 0:03:09]} 27... Re7 {[%clk
0:03:43.8]} 28. Qxe6+ {[%clk 0:03:05.8]} 28... Rxe6 {[%clk 0:03:42.7]} 29. Rd7
{[%clk 0:03:04.7]} 29... b5 {[%clk 0:03:32.1]} 30. Kf1 {[%clk 0:02:54.2]} 30...
c5 {[%clk 0:03:22.8]} 31. Rc7 {[%clk 0:02:41.4]} 31... Bf8 {[%clk 0:03:21]} 32.
Ke2 {[%clk 0:02:36.7]} 32... Re4 {[%clk 0:03:19.7]} 33. Rc6 {[%clk 0:02:26.9]}
33... c4 {[%clk 0:03:18.5]} 34. bxc4 {[%clk 0:02:20.7]} 34... Rxc4 {[%clk
0:03:14.8]} 35. Rxg6+ {[%clk 0:02:19.2]} 35... Kf7 {[%clk 0:03:13.7]} 36. Rxa6
{[%clk 0:02:17.9]} 36... Rc2+ {[%clk 0:03:10.4]} 37. Kf3 {[%clk 0:02:15.8]}
37... b4 {[%clk 0:03:02.7]} 38. Be1 {[%clk 0:02:00.1]} 38... h5 {[%clk
0:02:41.8]} 39. Ra4 {[%clk 0:01:57.5]} 39... Rb2 {[%clk 0:02:22.2]} 40. g4
{[%clk 0:01:47.7]} 40... fxg4+ {[%clk 0:02:18.6]} 41. hxg4 {[%clk 0:01:46]}
41... hxg4+ {[%clk 0:02:17.2]} 42. Kxg4 {[%clk 0:01:45.3]} 42... Bc5 {[%clk
0:02:13.5]} 43. e4 {[%clk 0:01:28.1]} 43... Re2 {[%clk 0:01:55.3]} 44. Bxb4
{[%clk 0:01:25.9]} 44... Bxb4 {[%clk 0:01:55.2]} 45. Rxb4 {[%clk 0:01:24.4]}
45... Rxa2 {[%clk 0:01:54.7]} 46. e5 {[%clk 0:01:21.9]} 46... Rg2+ {[%clk
0:01:51.6]} 47. Kf3 {[%clk 0:01:20.5]} 47... Ra2 {[%clk 0:01:49]} 48. Re4 {[%clk
0:01:19]} 48... Ra6 {[%clk 0:01:45.2]} 49. f5 {[%clk 0:01:17.6]} 49... Ra1
{[%clk 0:01:33.8]} 50. e6+ {[%clk 0:01:14.6]} 50... Ke7 {[%clk 0:01:32.8]} 51.
Kf4 {[%clk 0:01:11.5]} 51... Rf1+ {[%clk 0:01:30]} 52. Ke5 {[%clk 0:01:10.5]}
52... Rf2 {[%clk 0:01:25.9]} 53. Rf4 {[%clk 0:01:08.8]} 53... Re2+ {[%clk
0:01:24.5]} 54. Re4 {[%clk 0:01:08.1]} 54... Rf2 {[%clk 0:01:23.5]} 55. Rf4
{[%clk 0:01:07.2]} 55... Re2+ {[%clk 0:01:22.4]} 56. Re4 {[%clk 0:01:06.5]}
56... Rf2 {[%clk 0:01:21.5]} 1/2-1/2

[Event "Live Chess"]
[Site "Chess.com"]
[Date "2024.06.02"]
[Round "-"]
[White "JanMur7"]
[Black "Ferrarifan27"]
[Result "0-1"]
[WhiteElo "2283"]
[BlackElo "2122"]
[TimeControl "300"]
[EndTime "23:33:59 PDT"]
[Termination "Ferrarifan27 won on time"]

1. c4 {[%clk 0:04:57.9]} 1... Nf6 {[%clk 0:04:58.2]} 2. Nc3 {[%clk 0:04:56.9]}
2... e6 {[%clk 0:04:56.9]} 3. d4 {[%clk 0:04:56.2]} 3... d5 {[%clk 0:04:55.1]}
4. Bg5 {[%clk 0:04:55]} 4... Be7 {[%clk 0:04:51.7]} 5. e3 {[%clk 0:04:53.9]}
5... c6 {[%clk 0:04:50.6]} 6. Nf3 {[%clk 0:04:50.4]} 6... O-O {[%clk 0:04:48.7]}
7. cxd5 {[%clk 0:04:34.9]} 7... exd5 {[%clk 0:04:46.7]} 8. Bd3 {[%clk 0:04:34]}
8... h6 {[%clk 0:04:43.6]} 9. Bh4 {[%clk 0:04:32.4]} 9... Bg4 {[%clk 0:04:34.8]}
10. h3 {[%clk 0:04:30.4]} 10... Bh5 {[%clk 0:04:32.4]} 11. g4 {[%clk 0:04:26]}
11... Bg6 {[%clk 0:04:23.5]} 12. Ne5 {[%clk 0:04:23.5]} 12... Bxd3 {[%clk
0:04:20.8]} 13. Qxd3 {[%clk 0:04:23.4]} 13... Nbd7 {[%clk 0:04:13.3]} 14. f4
{[%clk 0:04:16.6]} 14... Ne4 {[%clk 0:03:54.6]} 15. Bxe7 {[%clk 0:04:10.6]}
15... Qxe7 {[%clk 0:03:52.2]} 16. Nxd7 {[%clk 0:04:07.9]} 16... Qxd7 {[%clk
0:03:51]} 17. Nxe4 {[%clk 0:04:05.5]} 17... dxe4 {[%clk 0:03:50]} 18. Qxe4
{[%clk 0:04:03.9]} 18... Rfe8 {[%clk 0:03:49]} 19. Qd3 {[%clk 0:04:01.9]} 19...
Rxe3+ {[%clk 0:03:46.9]} 20. Qxe3 {[%clk 0:03:57.1]} 20... Re8 {[%clk
0:03:46.5]} 21. Kf2 {[%clk 0:03:54.7]} 21... Rxe3 {[%clk 0:03:43.9]} 22. Kxe3
{[%clk 0:03:54.6]} 22... Qe7+ {[%clk 0:03:40.4]} 23. Kd3 {[%clk 0:03:53.2]}
23... Qb4 {[%clk 0:03:32.2]} 24. b3 {[%clk 0:03:50.9]} 24... Qb5+ {[%clk
0:03:29.2]} 25. Kc3 {[%clk 0:03:46.2]} 25... Qa5+ {[%clk 0:03:21.8]} 26. Kc2
{[%clk 0:03:40.1]} 26... Qd5 {[%clk 0:03:17.6]} 27. f5 {[%clk 0:03:13.9]} 27...
Qxd4 {[%clk 0:03:12.6]} 28. Rad1 {[%clk 0:03:13.5]} 28... Qe4+ {[%clk
0:03:10.9]} 29. Kb2 {[%clk 0:03:12.7]} 29... Kh7 {[%clk 0:03:01.9]} 30. Rhf1
{[%clk 0:02:06.1]} 30... Qg2+ {[%clk 0:02:57.2]} 31. Kb1 {[%clk 0:02:02.5]}
31... Qxh3 {[%clk 0:02:53.3]} 32. Rf4 {[%clk 0:01:55]} 32... Qh2 {[%clk
0:02:40.8]} 33. Rc4 {[%clk 0:01:42.5]} 33... f6 {[%clk 0:02:32.2]} 34. Rd7
{[%clk 0:01:38.2]} 34... Qg1+ {[%clk 0:02:28.4]} 35. Rc1 {[%clk 0:01:35.6]}
35... Qxg4 {[%clk 0:02:24.8]} 36. Rxb7 {[%clk 0:01:34.3]} 36... Qxf5+ {[%clk
0:02:23.5]} 37. Kb2 {[%clk 0:01:30.9]} 37... Qf3 {[%clk 0:02:10.6]} 38. Rc3
{[%clk 0:01:26.4]} 38... Qf2+ {[%clk 0:01:49.7]} 39. Rc2 {[%clk 0:01:25.1]}
39... Qd4+ {[%clk 0:01:48.5]} 40. Ka3 {[%clk 0:01:13.9]} 40... a5 {[%clk
0:01:39.6]} 41. Rg2 {[%clk 0:00:58.8]} 41... f5 {[%clk 0:01:35.5]} 42. Rf7
{[%clk 0:00:36.2]} 42... f4 {[%clk 0:01:25.3]} 43. Rg4 {[%clk 0:00:28.6]} 43...
h5 {[%clk 0:00:54.8]} 44. Rgxf4 {[%clk 0:00:25.9]} 44... Qc5+ {[%clk 0:00:53.9]}
45. Kb2 {[%clk 0:00:24.5]} 45... Kh6 {[%clk 0:00:49.9]} 46. R7f5 {[%clk
0:00:21.2]} 46... Qd6 {[%clk 0:00:44.8]} 47. Rf2 {[%clk 0:00:19.2]} 47... Qd4+
{[%clk 0:00:42.8]} 48. Kb1 {[%clk 0:00:18.5]} 48... g6 {[%clk 0:00:40.2]} 49.
R5f4 {[%clk 0:00:16.8]} 49... Qd3+ {[%clk 0:00:39.1]} 50. Kb2 {[%clk 0:00:15.7]}
50... c5 {[%clk 0:00:35]} 51. Rc4 {[%clk 0:00:14.6]} 51... Qe3 {[%clk
0:00:31.8]} 52. Rfc2 {[%clk 0:00:13.7]} 52... Qe5+ {[%clk 0:00:27.8]} 53. Kb1
{[%clk 0:00:12.8]} 53... Qe1+ {[%clk 0:00:26.4]} 54. Kb2 {[%clk 0:00:12.4]}
54... Qe5+ {[%clk 0:00:25.3]} 55. Kb1 {[%clk 0:00:11.6]} 55... g5 {[%clk
0:00:22.8]} 56. Rxc5 {[%clk 0:00:10.6]} 56... Qe1+ {[%clk 0:00:21.6]} 57. Kb2
{[%clk 0:00:10.5]} 57... h4 {[%clk 0:00:19.7]} 58. Rc6+ {[%clk 0:00:09.8]} 58...
Kh5 {[%clk 0:00:18.4]} 59. Rc8 {[%clk 0:00:08.7]} 59... Qe5+ {[%clk 0:00:17.3]}
60. Kb1 {[%clk 0:00:07.3]} 60... h3 {[%clk 0:00:16.6]} 61. R8c4 {[%clk
0:00:03.4]} 61... h2 {[%clk 0:00:14.1]} 62. Rc1 {[%clk 0:00:01.7]} 62... g4
{[%clk 0:00:11]} 63. Rc5 {[%clk 0:00:00.6]} 63... Qxc5 {[%clk 0:00:05.6]} 64.
Rxc5+ {[%clk 0:00:00.5]} 64... Kh4 {[%clk 0:00:05]} 65. Rc1 {[%clk 0:00:00.4]}
65... g3 {[%clk 0:00:04.2]} 0-1

[Event "Live Chess"]
[Site "Chess.com"]
[Date "2024.06.02"]
[Round "-"]
[White "EPotapov05"]
[Black "MagnersCarlsberg2870"]
[Result "1-0"]
[WhiteElo "1816"]
[BlackElo "1810"]
[TimeControl "300"]
[EndTime "23:34:12 PDT"]
[Termination "EPotapov05 won by resignation"]

1. d4 {[%clk 0:04:55.7]} 1... Nf6 {[%clk 0:04:58.4]} 2. c4 {[%clk 0:04:54.7]}
2... e5 {[%clk 0:04:57.2]} 3. dxe5 {[%clk 0:04:52.7]} 3... Ng4 {[%clk
0:04:56.3]} 4. Bf4 {[%clk 0:04:49.6]} 4... Nc6 {[%clk 0:04:54.8]} 5. Nf3 {[%clk
0:04:48.3]} 5... Qe7 {[%clk 0:04:53.4]} 6. e3 {[%clk 0:04:40]} 6... Ngxe5 {[%clk
0:04:51.1]} 7. Nxe5 {[%clk 0:04:37.6]} 7... Nxe5 {[%clk 0:04:50]} 8. Be2 {[%clk
0:04:33.6]} 8... Ng6 {[%clk 0:04:48.4]} 9. Bxc7 {[%clk 0:04:20]} 9... Qb4+
{[%clk 0:04:47]} 10. Qd2 {[%clk 0:04:12.8]} 10... Qxd2+ {[%clk 0:04:45.6]} 11.
Nxd2 {[%clk 0:04:09.1]} 11... b6 {[%clk 0:04:41.1]} 12. Bg3 {[%clk 0:04:05.2]}
12... Bb7 {[%clk 0:04:39.2]} 13. Bf3 {[%clk 0:04:04.4]} 13... Bxf3 {[%clk
0:04:36.1]} 14. Nxf3 {[%clk 0:04:03.5]} 14... Bb4+ {[%clk 0:04:34.6]} 15. Ke2
{[%clk 0:04:00.2]} 15... Rc8 {[%clk 0:04:32.9]} 16. b3 {[%clk 0:03:58.1]} 16...
O-O {[%clk 0:04:25.5]} 17. Rhd1 {[%clk 0:03:56.3]} 17... Rfd8 {[%clk 0:04:16.6]}
18. Bd6 {[%clk 0:03:49.8]} 18... Bc3 {[%clk 0:04:10.5]} 19. Rac1 {[%clk
0:03:47.9]} 19... Bf6 {[%clk 0:04:08.9]} 20. Rd3 {[%clk 0:03:39.8]} 20... Rc6
{[%clk 0:04:06.9]} 21. Rcd1 {[%clk 0:03:38.1]} 21... a5 {[%clk 0:03:43.7]} 22.
a4 {[%clk 0:03:31.5]} 22... h6 {[%clk 0:03:41.9]} 23. Rd5 {[%clk 0:03:25.9]}
23... Kh7 {[%clk 0:03:29.6]} 24. Nd4 {[%clk 0:03:20.2]} 24... Bxd4 {[%clk
0:03:26.2]} 25. R5xd4 {[%clk 0:03:18.3]} 25... Nh8 {[%clk 0:03:05.8]} 26. Bg3
{[%clk 0:03:16.2]} 26... Ng6 {[%clk 0:02:44.8]} 27. Rxd7 {[%clk 0:03:11.3]}
27... Rxd7 {[%clk 0:02:44]} 28. Rxd7 {[%clk 0:03:09.7]} 28... f6 {[%clk
0:02:42.9]} 29. Rd6 {[%clk 0:03:04.1]} 29... Rxd6 {[%clk 0:02:35.6]} 30. Bxd6
{[%clk 0:03:02.4]} 30... Ne5 {[%clk 0:02:32.4]} 31. Bxe5 {[%clk 0:02:51.2]}
31... fxe5 {[%clk 0:02:31.2]} 32. Kd3 {[%clk 0:02:50.1]} 32... Kg6 {[%clk
0:02:30]} 33. Ke4 {[%clk 0:02:49.2]} 33... Kf6 {[%clk 0:02:28.8]} 34. Kd5 {[%clk
0:02:47.2]} 1-0

[Event "Live Chess"]
[Site "Chess.com"]
[Date "2024.06.02"]
[Round "-"]
[White "matt1979"]
[Black "NAZRIZ1977"]
[Result "0-1"]
[WhiteElo "1385"]
[BlackElo "2098"]
[TimeControl "300"]
[EndTime "23:34:16 PDT"]
[Termination "NAZRIZ1977 won by resignation"]

1. f4 {[%clk 0:04:58.4]} 1... c5 {[%clk 0:04:57.5]} 2. Nf3 {[%clk 0:04:56.4]}
2... Nc6 {[%clk 0:04:54.6]} 3. e3 {[%clk 0:04:54.2]} 3... g6 {[%clk 0:04:51.8]}
4. d3 {[%clk 0:04:50.6]} 4... Bg7 {[%clk 0:04:50.4]} 5. Be2 {[%clk 0:04:49.7]}
5... d6 {[%clk 0:04:49.3]} 6. O-O {[%clk 0:04:48.5]} 6... Nf6 {[%clk 0:04:48]}
7. e4 {[%clk 0:04:47.4]} 7... Bg4 {[%clk 0:04:46.7]} 8. Nc3 {[%clk 0:04:43.5]}
8... O-O {[%clk 0:04:45.3]} 9. Qe1 {[%clk 0:04:41.1]} 9... Bxf3 {[%clk
0:04:40.9]} 10. Rxf3 {[%clk 0:04:37.3]} 10... Nd4 {[%clk 0:04:39]} 11. Rh3
{[%clk 0:04:27.2]} 11... Nxc2 {[%clk 0:04:32.8]} 12. Qh4 {[%clk 0:04:26]} 12...
e6 {[%clk 0:04:31.5]} 13. Rb1 {[%clk 0:04:21.6]} 13... Nh5 {[%clk 0:04:16.3]}
14. Qxd8 {[%clk 0:04:08.5]} 14... Rfxd8 {[%clk 0:04:10]} 15. Bxh5 {[%clk
0:04:06.8]} 15... gxh5 {[%clk 0:04:09.9]} 16. Rxh5 {[%clk 0:04:05.1]} 16... Rab8
{[%clk 0:04:05.2]} 17. Bd2 {[%clk 0:03:57.5]} 17... b5 {[%clk 0:04:03.2]} 18. a3
{[%clk 0:03:55.5]} 18... Nd4 {[%clk 0:03:59.1]} 19. Rf1 {[%clk 0:03:49.7]} 19...
b4 {[%clk 0:03:53]} 20. Nd1 {[%clk 0:03:35.2]} 20... bxa3 {[%clk 0:03:46.4]} 21.
bxa3 {[%clk 0:03:34.2]} 21... Rb1 {[%clk 0:03:44.7]} 22. Bc3 {[%clk 0:03:25.4]}
22... Ne2+ {[%clk 0:03:28]} 23. Kf2 {[%clk 0:03:21.7]} 23... Nxc3 {[%clk
0:03:27.4]} 24. Nxc3 {[%clk 0:03:20.6]} 24... Rxf1+ {[%clk 0:03:27.3]} 25. Kxf1
{[%clk 0:03:19.2]} 25... Bxc3 {[%clk 0:03:27.2]} 0-1

[Event "Live Chess"]
[Site "Chess.com"]
[Date "2024.06.02"]
[Round "-"]
[White "nigelst"]
[Black "Bradfield133"]
[Result "1-0"]
[WhiteElo "1742"]
[BlackElo "1869"]
[TimeControl "300"]
[EndTime "23:34:20 PDT"]
[Termination "nigelst won on time"]

1. e4 {[%clk 0:04:55.4]} 1... c5 {[%clk 0:04:58.8]} 2. Nf3 {[%clk 0:04:52.5]}
2... Nc6 {[%clk 0:04:57.8]} 3. Bb5 {[%clk 0:04:49.6]} 3... Qb6 {[%clk
0:04:55.8]} 4. Nc3 {[%clk 0:04:47.2]} 4... e6 {[%clk 0:04:53.7]} 5. O-O {[%clk
0:04:45.1]} 5... Nge7 {[%clk 0:04:51.5]} 6. Qe2 {[%clk 0:04:31.4]} 6... Nd4
{[%clk 0:04:41.5]} 7. Qd3 {[%clk 0:04:20.5]} 7... a6 {[%clk 0:04:20.7]} 8. Ba4
{[%clk 0:04:12.6]} 8... Nec6 {[%clk 0:04:09.1]} 9. Bxc6 {[%clk 0:04:09.1]} 9...
Nxc6 {[%clk 0:04:01.4]} 10. e5 {[%clk 0:03:54.6]} 10... Qc7 {[%clk 0:03:43.8]}
11. Re1 {[%clk 0:03:50.4]} 11... Be7 {[%clk 0:03:32.4]} 12. Qe4 {[%clk
0:03:46.1]} 12... O-O {[%clk 0:03:24.3]} 13. d4 {[%clk 0:03:38.9]} 13... cxd4
{[%clk 0:02:54]} 14. Nxd4 {[%clk 0:03:36.5]} 14... f6 {[%clk 0:02:38.5]} 15.
Nxc6 {[%clk 0:03:24.8]} 15... bxc6 {[%clk 0:02:31.4]} 16. exf6 {[%clk
0:03:21.5]} 16... Rxf6 {[%clk 0:02:19.6]} 17. Bg5 {[%clk 0:03:17.5]} 17... Rf7
{[%clk 0:02:13.3]} 18. Bxe7 {[%clk 0:03:15.6]} 18... Rxe7 {[%clk 0:02:12.3]} 19.
Qh4 {[%clk 0:03:08.9]} 19... d5 {[%clk 0:02:08.2]} 20. Ne2 {[%clk 0:03:05.5]}
20... Rf7 {[%clk 0:01:54.6]} 21. Ng3 {[%clk 0:02:55.1]} 21... Qf4 {[%clk
0:01:45]} 22. Qxf4 {[%clk 0:02:52.5]} 22... Rxf4 {[%clk 0:01:43.6]} 23. Re2
{[%clk 0:02:49]} 23... c5 {[%clk 0:01:37.4]} 24. Rae1 {[%clk 0:02:43.5]} 24...
c4 {[%clk 0:01:34.1]} 25. Nf1 {[%clk 0:02:28.2]} 25... a5 {[%clk 0:01:30.9]} 26.
Nd2 {[%clk 0:02:26.1]} 26... a4 {[%clk 0:01:27.8]} 27. b3 {[%clk 0:02:20.6]}
27... axb3 {[%clk 0:01:25.7]} 28. axb3 {[%clk 0:02:18.6]} 28... cxb3 {[%clk
0:01:19.7]} 29. Nxb3 {[%clk 0:02:15.4]} 29... Rc4 {[%clk 0:01:14.5]} 30. Ra1
{[%clk 0:02:05.5]} 30... Rxa1+ {[%clk 0:01:10.4]} 31. Nxa1 {[%clk 0:02:03.1]}
31... Kf7 {[%clk 0:01:01.3]} 32. Nb3 {[%clk 0:02:01.2]} 32... Ke7 {[%clk
0:00:57]} 33. g3 {[%clk 0:01:53.6]} 33... Kd6 {[%clk 0:00:53.7]} 34. f4 {[%clk
0:01:50]} 34... Ba6 {[%clk 0:00:50.9]} 35. Rd2 {[%clk 0:01:47.2]} 35... Bb5
{[%clk 0:00:39.4]} 36. Na5 {[%clk 0:01:43.4]} 36... Ra4 {[%clk 0:00:31.4]} 37.
Nb7+ {[%clk 0:01:30.8]} 37... Kc6 {[%clk 0:00:28]} 38. Nd8+ {[%clk 0:01:28.6]}
38... Kd6 {[%clk 0:00:26.2]} 39. Nb7+ {[%clk 0:01:18.7]} 39... Kc6 {[%clk
0:00:25.1]} 40. Nd8+ {[%clk 0:01:16.8]} 40... Kd7 {[%clk 0:00:21.9]} 41. Nf7
{[%clk 0:01:13.5]} 41... Ke7 {[%clk 0:00:19.9]} 42. Ng5 {[%clk 0:01:11]} 42...
h6 {[%clk 0:00:17.7]} 43. Nf3 {[%clk 0:01:08.7]} 43... Rc4 {[%clk 0:00:16.6]}
44. Nd4 {[%clk 0:01:03]} 44... Ba4 {[%clk 0:00:14.2]} 45. Nb3 {[%clk 0:00:57.2]}
45... Bxb3 {[%clk 0:00:11.9]} 46. cxb3 {[%clk 0:00:55.8]} 46... Rb4 {[%clk
0:00:09.9]} 47. Rd3 {[%clk 0:00:54.6]} 47... Kd6 {[%clk 0:00:09]} 48. Kf2 {[%clk
0:00:53.3]} 48... Kc5 {[%clk 0:00:08.4]} 49. Ke3 {[%clk 0:00:52.2]} 49... Kd6
{[%clk 0:00:04.1]} 50. Rc3 {[%clk 0:00:49.7]} 50... Re4+ {[%clk 0:00:03]} 51.
Kd3 {[%clk 0:00:48.1]} 51... Re1 {[%clk 0:00:01.6]} 52. Rc2 {[%clk 0:00:46.2]}
1-0